[Event "*** Titled Tuesday Blitz AM"]
[Site "Chess.com"]
[Date "2020.01.07"]
[Round "5"]
[White "Philosopherrr"]
[Black "Peroncio"]
[Result "0-1"]
[WhiteElo "2448"]
[BlackElo "2751"]
[TimeControl "180+2"]
[EndTime "10:03:54 PST"]
[Termination "Peroncio won by resignation"]

1. e4 {[%clk 0:03:01.9]} 1... e6 {[%clk 0:03:01]} 2. d4 {[%clk 0:03:02.1]} 2...
d5 {[%clk 0:03:02.7]} 3. Nc3 {[%clk 0:03:03.4]} 3... Bb4 {[%clk 0:03:03.1]} 4.
e5 {[%clk 0:03:03.9]} 4... c5 {[%clk 0:03:04.2]} 5. Bd2 {[%clk 0:03:05.3]} 5...
cxd4 {[%clk 0:03:03.8]} 6. Nb5 {[%clk 0:03:05.7]} 6... Bf8 {[%clk 0:03:05.5]} 7.
f4 {[%clk 0:03:03.9]} 7... a6 {[%clk 0:03:06.9]} 8. Nxd4 {[%clk 0:03:04.6]} 8...
Ne7 {[%clk 0:03:08.5]} 9. Ngf3 {[%clk 0:03:04.1]} 9... Nec6 {[%clk 0:03:10.2]}
10. Be3 {[%clk 0:02:59.5]} 10... Bd7 {[%clk 0:02:59.1]} 11. c3 {[%clk
0:02:58.5]} 11... Nxd4 {[%clk 0:02:59.7]} 12. Nxd4 {[%clk 0:02:55.1]} 12... Nc6
{[%clk 0:02:58.8]} 13. Bd3 {[%clk 0:02:55.8]} 13... Nxd4 {[%clk 0:03:00]} 14.
Bxd4 {[%clk 0:02:56.5]} 14... Rc8 {[%clk 0:02:46.6]} 15. Qg4 {[%clk 0:02:27]}
15... g6 {[%clk 0:02:46.2]} 16. b4 {[%clk 0:02:13.4]} 16... Bb5 {[%clk
0:02:45.9]} 17. Bc2 {[%clk 0:01:41.9]} 17... Bxb4 {[%clk 0:02:41]} 18. Bxg6
{[%clk 0:00:56.2]} 18... hxg6 {[%clk 0:02:35.3]} 19. cxb4 {[%clk 0:00:57.4]}
19... Rc4 {[%clk 0:02:33.8]} 20. Bc5 {[%clk 0:00:58.7]} 20... Rh4 {[%clk
0:02:26.5]} 21. Qg5 {[%clk 0:00:38.7]} 21... Rhxf4 {[%clk 0:02:05.9]} 22. Qxd8+
{[%clk 0:00:37.5]} 22... Kxd8 {[%clk 0:02:07.8]} 23. a4 {[%clk 0:00:20.4]} 23...
Rce4+ {[%clk 0:02:05.7]} 24. Kd1 {[%clk 0:00:20.2]} 24... Bc4 {[%clk 0:02:06.4]}
25. Re1 {[%clk 0:00:20]} 25... Rxe1+ {[%clk 0:02:05.3]} 26. Kxe1 {[%clk
0:00:21.5]} 26... Rf1+ {[%clk 0:02:07]} 0-1

[Event "*** Titled Tuesday Blitz AM"]
[Site "Chess.com"]
[Date "2020.01.07"]
[Round "5"]
[White "cholzan"]
[Black "BocharovD"]
[Result "0-1"]
[WhiteElo "2539"]
[BlackElo "2766"]
[TimeControl "180+2"]
[EndTime "10:04:03 PST"]
[Termination "BocharovD won by resignation"]

1. d4 {[%clk 0:03:01.8]} 1... Nf6 {[%clk 0:02:49.5]} 2. c4 {[%clk 0:03:03.1]}
2... e6 {[%clk 0:02:49.3]} 3. Nc3 {[%clk 0:03:04.4]} 3... Bb4 {[%clk 0:02:49.3]}
4. e3 {[%clk 0:03:05.9]} 4... O-O {[%clk 0:02:50]} 5. Ne2 {[%clk 0:03:07.4]}
5... Re8 {[%clk 0:02:50]} 6. a3 {[%clk 0:03:08.1]} 6... Bf8 {[%clk 0:02:50.6]}
7. Ng3 {[%clk 0:03:07.5]} 7... d5 {[%clk 0:02:50.6]} 8. Bd3 {[%clk 0:02:54]}
8... c5 {[%clk 0:02:49.6]} 9. O-O {[%clk 0:02:54.3]} 9... cxd4 {[%clk
0:02:48.7]} 10. exd4 {[%clk 0:02:55.3]} 10... Nc6 {[%clk 0:02:50.3]} 11. Be3
{[%clk 0:02:48.7]} 11... dxc4 {[%clk 0:02:35.8]} 12. Bxc4 {[%clk 0:02:48.5]}
12... b6 {[%clk 0:02:37]} 13. Rc1 {[%clk 0:02:36.9]} 13... Bb7 {[%clk
0:02:36.6]} 14. Bb5 {[%clk 0:02:32]} 14... a6 {[%clk 0:02:32.9]} 15. Ba4 {[%clk
0:02:30.5]} 15... b5 {[%clk 0:02:32.8]} 16. Bc2 {[%clk 0:02:31.4]} 16... Na5
{[%clk 0:02:33.1]} 17. Qd3 {[%clk 0:02:26.9]} 17... Nc4 {[%clk 0:02:28.8]} 18.
Nh5 {[%clk 0:02:24.1]} 18... g6 {[%clk 0:02:26.4]} 19. Bg5 {[%clk 0:02:24.1]}
19... Be7 {[%clk 0:02:23.2]} 20. Nxf6+ {[%clk 0:02:05.5]} 20... Bxf6 {[%clk
0:02:22.4]} 21. Bxf6 {[%clk 0:02:03.9]} 21... Qxf6 {[%clk 0:02:22.5]} 22. Rb1
{[%clk 0:02:02.2]} 22... Rad8 {[%clk 0:02:17.2]} 23. Rfd1 {[%clk 0:02:00]} 23...
Rd7 {[%clk 0:02:13.9]} 24. a4 {[%clk 0:01:54.4]} 24... Red8 {[%clk 0:02:10]} 25.
axb5 {[%clk 0:01:54]} 25... axb5 {[%clk 0:02:08.2]} 26. Nxb5 {[%clk 0:01:52.1]}
26... Qg5 {[%clk 0:02:08.3]} 27. d5 {[%clk 0:01:16.8]} 27... Rxd5 {[%clk
0:01:58.7]} 28. Qg3 {[%clk 0:01:17]} 28... Rxb5 {[%clk 0:01:57.3]} 29. Rxd8+
{[%clk 0:01:11.2]} 29... Qxd8 {[%clk 0:01:57.5]} 30. Bd3 {[%clk 0:01:12.5]}
30... Rg5 {[%clk 0:01:55.7]} 0-1

[Event "*** Titled Tuesday Blitz AM"]
[Site "Chess.com"]
[Date "2020.01.07"]
[Round "5"]
[White "Snegokhod"]
[Black "LiamVrolijk"]
[Result "1/2-1/2"]
[WhiteElo "2595"]
[BlackElo "2803"]
[TimeControl "180+2"]
[EndTime "10:04:08 PST"]
[Termination "Game drawn by agreement"]

1. d4 {[%clk 0:03:01.8]} 1... Nf6 {[%clk 0:03:00.6]} 2. Nc3 {[%clk 0:03:02.4]}
2... d5 {[%clk 0:03:01.1]} 3. Bg5 {[%clk 0:03:02.8]} 3... Nbd7 {[%clk
0:02:55.8]} 4. e3 {[%clk 0:03:03.1]} 4... c5 {[%clk 0:02:51.2]} 5. a3 {[%clk
0:03:02.5]} 5... e6 {[%clk 0:02:48.5]} 6. f4 {[%clk 0:03:03.1]} 6... b6 {[%clk
0:02:44.8]} 7. Nf3 {[%clk 0:03:01.8]} 7... Bb7 {[%clk 0:02:44.5]} 8. Bxf6 {[%clk
0:03:00]} 8... gxf6 {[%clk 0:02:40.2]} 9. f5 {[%clk 0:02:52.6]} 9... Bd6 {[%clk
0:02:31.5]} 10. fxe6 {[%clk 0:02:51.5]} 10... fxe6 {[%clk 0:02:33.4]} 11. Nh4
{[%clk 0:02:22.2]} 11... Qe7 {[%clk 0:02:33.4]} 12. Qh5+ {[%clk 0:02:20.2]}
12... Qf7 {[%clk 0:02:32.8]} 13. Be2 {[%clk 0:02:21.8]} 13... Qxh5 {[%clk
0:02:28.2]} 14. Bxh5+ {[%clk 0:02:23.7]} 14... Ke7 {[%clk 0:02:29.6]} 15. O-O
{[%clk 0:02:24.7]} 15... a6 {[%clk 0:02:26.1]} 16. Bf3 {[%clk 0:02:23.1]} 16...
Rhg8 {[%clk 0:02:21.4]} 17. g3 {[%clk 0:02:21.3]} 17... Rac8 {[%clk 0:02:21]}
18. Ng2 {[%clk 0:02:21.7]} 18... b5 {[%clk 0:02:16.1]} 19. Be2 {[%clk
0:02:19.9]} 19... Bb8 {[%clk 0:02:05.2]} 20. Bd3 {[%clk 0:02:12.2]} 20... Ba7
{[%clk 0:02:00.2]} 21. dxc5 {[%clk 0:02:06.7]} 21... Bxc5 {[%clk 0:01:51.5]} 22.
Ne2 {[%clk 0:02:05.1]} 22... Rg7 {[%clk 0:01:48.4]} 23. Nd4 {[%clk 0:02:05.6]}
23... Ne5 {[%clk 0:01:42.7]} 24. Nf4 {[%clk 0:02:04.6]} 24... Nxd3 {[%clk
0:01:38.8]} 25. cxd3 {[%clk 0:02:03.7]} 25... Bxd4 {[%clk 0:01:30.1]} 26. exd4
{[%clk 0:02:04.7]} 26... Kd6 {[%clk 0:01:31.8]} 27. Rfe1 {[%clk 0:02:05]} 27...
e5 {[%clk 0:01:30.1]} 28. Ng2 {[%clk 0:01:52.8]} 28... Rcc7 {[%clk 0:01:18.8]}
29. Ne3 {[%clk 0:01:53]} 29... Bc8 {[%clk 0:01:20.4]} 30. Re2 {[%clk 0:01:51.2]}
30... exd4 {[%clk 0:01:19.3]} 31. Nc2 {[%clk 0:01:50.9]} 31... f5 {[%clk
0:01:18.2]} 32. Rf1 {[%clk 0:01:41.8]} 1/2-1/2

[Event "*** Titled Tuesday Blitz AM"]
[Site "Chess.com"]
[Date "2020.01.07"]
[Round "5"]
[White "WildTricks"]
[Black "shanemelaughcm"]
[Result "1-0"]
[WhiteElo "2496"]
[BlackElo "2323"]
[TimeControl "180+2"]
[EndTime "10:04:09 PST"]
[Termination "WildTricks won by resignation"]

1. Nf3 {[%clk 0:03:01.9]} 1... e6 {[%clk 0:02:56.5]} 2. g3 {[%clk 0:03:03.2]}
2... f5 {[%clk 0:02:57.2]} 3. Bg2 {[%clk 0:03:03.5]} 3... Nf6 {[%clk 0:02:58.7]}
4. O-O {[%clk 0:03:04.9]} 4... Be7 {[%clk 0:02:59.9]} 5. d4 {[%clk 0:03:04]}
5... O-O {[%clk 0:03:00.8]} 6. c4 {[%clk 0:03:05.3]} 6... d6 {[%clk 0:03:01.5]}
7. Nc3 {[%clk 0:03:05.7]} 7... Ne4 {[%clk 0:03:03]} 8. Qc2 {[%clk 0:03:04.5]}
8... Nxc3 {[%clk 0:03:03.1]} 9. Qxc3 {[%clk 0:03:04.8]} 9... Bf6 {[%clk
0:03:03.2]} 10. Bf4 {[%clk 0:03:03.5]} 10... Nc6 {[%clk 0:03:01.9]} 11. Rad1
{[%clk 0:02:51.4]} 11... Qe8 {[%clk 0:03:01.6]} 12. Rfe1 {[%clk 0:02:47.7]}
12... e5 {[%clk 0:02:59.3]} 13. dxe5 {[%clk 0:02:40.8]} 13... dxe5 {[%clk
0:03:01.2]} 14. Bg5 {[%clk 0:02:41.3]} 14... e4 {[%clk 0:02:37.4]} 15. Bxf6
{[%clk 0:02:41.7]} 15... exf3 {[%clk 0:02:38.4]} 16. exf3 {[%clk 0:02:43.3]}
16... Qg6 {[%clk 0:02:30.8]} 17. Be7 {[%clk 0:02:31.8]} 17... Rf7 {[%clk
0:02:21.7]} 18. Ba3 {[%clk 0:02:27.9]} 18... Be6 {[%clk 0:02:17.6]} 19. f4
{[%clk 0:02:28.8]} 19... Rf6 {[%clk 0:02:06.7]} 20. b3 {[%clk 0:02:24.9]} 20...
Qf7 {[%clk 0:02:05.9]} 21. Bb2 {[%clk 0:02:24.8]} 21... Rh6 {[%clk 0:02:05.9]}
22. Rxe6 {[%clk 0:01:51]} 22... Rxe6 {[%clk 0:02:00.3]} 23. Bd5 {[%clk 0:01:52]}
23... Nd8 {[%clk 0:02:01.8]} 24. Re1 {[%clk 0:01:46.9]} 24... Kf8 {[%clk
0:01:46.9]} 25. Bxe6 {[%clk 0:01:43.8]} 25... Nxe6 {[%clk 0:01:48.8]} 26. Rxe6
{[%clk 0:01:39.1]} 26... Qxe6 {[%clk 0:01:49.4]} 27. Qxg7+ {[%clk 0:01:40.2]}
27... Ke8 {[%clk 0:01:49]} 28. Qh8+ {[%clk 0:01:33.5]} 28... Kd7 {[%clk
0:01:49.3]} 29. Qxa8 {[%clk 0:01:34.1]} 29... Qe1+ {[%clk 0:01:50.3]} 30. Kg2
{[%clk 0:01:35]} 30... Qe4+ {[%clk 0:01:46.1]} 31. Kh3 {[%clk 0:01:35.7]} 31...
Qe2 {[%clk 0:01:36]} 32. Qh8 {[%clk 0:01:27.3]} 32... Qf1+ {[%clk 0:01:32.4]}
33. Kh4 {[%clk 0:01:28]} 33... Qxf2 {[%clk 0:01:33.9]} 34. Qd4+ {[%clk
0:01:28.3]} 34... Qxd4 {[%clk 0:01:32]} 35. Bxd4 {[%clk 0:01:30.2]} 35... Ke6
{[%clk 0:01:32.3]} 36. Bxa7 {[%clk 0:01:30.9]} 36... b6 {[%clk 0:01:33.6]} 37.
Kg5 {[%clk 0:01:31.3]} 37... b5 {[%clk 0:01:35.5]} 38. cxb5 {[%clk 0:01:32.1]}
1-0

[Event "*** Titled Tuesday Blitz AM"]
[Site "Chess.com"]
[Date "2020.01.07"]
[Round "5"]
[White "Last7Samurai"]
[Black "TregubovP"]
[Result "1-0"]
[WhiteElo "2830"]
[BlackElo "2585"]
[TimeControl "180+2"]
[EndTime "10:04:17 PST"]
[Termination "Last7Samurai won by resignation"]

1. d4 {[%clk 0:03:01.9]} 1... Nf6 {[%clk 0:03:00]} 2. Bg5 {[%clk 0:03:01.5]}
2... e6 {[%clk 0:02:59.8]} 3. Nf3 {[%clk 0:03:02.4]} 3... d5 {[%clk 0:02:57.6]}
4. e3 {[%clk 0:03:03.2]} 4... h6 {[%clk 0:02:56.3]} 5. Bh4 {[%clk 0:03:03.7]}
5... c5 {[%clk 0:02:55.7]} 6. Nbd2 {[%clk 0:03:02.4]} 6... Nc6 {[%clk
0:02:53.7]} 7. c3 {[%clk 0:03:03.4]} 7... Be7 {[%clk 0:02:50.3]} 8. Bd3 {[%clk
0:03:04]} 8... Nh5 {[%clk 0:02:40.1]} 9. Bxe7 {[%clk 0:03:03.6]} 9... Qxe7
{[%clk 0:02:41.3]} 10. O-O {[%clk 0:03:03.7]} 10... O-O {[%clk 0:02:41.1]} 11.
Re1 {[%clk 0:03:00.6]} 11... Nf6 {[%clk 0:02:41.7]} 12. e4 {[%clk 0:03:01.2]}
12... cxd4 {[%clk 0:02:41.9]} 13. e5 {[%clk 0:03:00.3]} 13... Ne4 {[%clk
0:02:34]} 14. cxd4 {[%clk 0:02:57.9]} 14... Nxd2 {[%clk 0:02:31.3]} 15. Qxd2
{[%clk 0:02:59.8]} 15... Bd7 {[%clk 0:02:31.5]} 16. Rac1 {[%clk 0:03:00.2]}
16... Rfc8 {[%clk 0:02:32.2]} 17. Bb1 {[%clk 0:02:59.8]} 17... Rc7 {[%clk
0:02:21.5]} 18. Qd3 {[%clk 0:02:57.9]} 18... g6 {[%clk 0:02:22.7]} 19. Qd2
{[%clk 0:02:56.3]} 19... Kg7 {[%clk 0:02:21.9]} 20. h4 {[%clk 0:02:57.4]} 20...
h5 {[%clk 0:02:19.5]} 21. Ng5 {[%clk 0:02:50.1]} 21... Rac8 {[%clk 0:02:19.6]}
22. Rc3 {[%clk 0:02:50.9]} 22... Qb4 {[%clk 0:02:12.6]} 23. Qf4 {[%clk
0:02:49.7]} 23... Be8 {[%clk 0:02:04.4]} 24. Rd1 {[%clk 0:02:17.2]} 24... Kg8
{[%clk 0:01:59]} 25. g4 {[%clk 0:02:10.9]} 25... hxg4 {[%clk 0:01:46.5]} 26. h5
{[%clk 0:02:06.3]} 26... Qe7 {[%clk 0:01:23.3]} 27. h6 {[%clk 0:01:59.8]} 27...
Nd8 {[%clk 0:00:51.7]} 28. Rg3 {[%clk 0:01:56.3]} 28... Qf8 {[%clk 0:00:47.4]}
29. Rxg4 {[%clk 0:01:50]} 29... Qxh6 {[%clk 0:00:45.7]} 30. Rh4 {[%clk 0:01:50]}
30... Qg7 {[%clk 0:00:46]} 31. Rh7 {[%clk 0:01:50.6]} 31... Qxh7 {[%clk
0:00:47.3]} 32. Nxh7 {[%clk 0:01:51.9]} 32... Kxh7 {[%clk 0:00:48.7]} 33. Kg2
{[%clk 0:01:53.1]} 33... Kg8 {[%clk 0:00:48.8]} 34. Rh1 {[%clk 0:01:52.3]} 1-0

[Event "*** Titled Tuesday Blitz AM"]
[Site "Chess.com"]
[Date "2020.01.07"]
[Round "5"]
[White "LogoCzar"]
[Black "SiddharthGMJagadeesh"]
[Result "0-1"]
[WhiteElo "2395"]
[BlackElo "2549"]
[TimeControl "180+2"]
[EndTime "10:04:33 PST"]
[Termination "SiddharthGMJagadeesh won by resignation"]

1. e4 {[%clk 0:03:01.9]} 1... c5 {[%clk 0:02:59.3]} 2. Nf3 {[%clk 0:03:02.1]}
2... Nc6 {[%clk 0:02:59.3]} 3. d4 {[%clk 0:03:02.7]} 3... Nxd4 {[%clk
0:02:59.4]} 4. Nxd4 {[%clk 0:03:04.6]} 4... cxd4 {[%clk 0:02:59.8]} 5. Qxd4
{[%clk 0:03:03.9]} 5... d6 {[%clk 0:02:51.8]} 6. Nc3 {[%clk 0:02:53.7]} 6... Nf6
{[%clk 0:02:50.8]} 7. Bg5 {[%clk 0:02:53.1]} 7... e6 {[%clk 0:02:50.5]} 8. Bb5+
{[%clk 0:02:46.3]} 8... Bd7 {[%clk 0:02:45.6]} 9. Bxd7+ {[%clk 0:02:44.7]} 9...
Qxd7 {[%clk 0:02:47.3]} 10. Bxf6 {[%clk 0:02:44.7]} 10... gxf6 {[%clk
0:02:48.5]} 11. Qxf6 {[%clk 0:02:45.9]} 11... Rg8 {[%clk 0:02:49.6]} 12. Qf3
{[%clk 0:02:35]} 12... Bg7 {[%clk 0:02:22.5]} 13. O-O-O {[%clk 0:02:24.1]} 13...
Rc8 {[%clk 0:02:20.2]} 14. Rd3 {[%clk 0:02:24.8]} 14... Be5 {[%clk 0:02:09.4]}
15. Rhd1 {[%clk 0:02:16.8]} 15... b5 {[%clk 0:02:09.7]} 16. g3 {[%clk
0:01:54.1]} 16... b4 {[%clk 0:02:09.7]} 17. Qh5 {[%clk 0:01:36.8]} 17... Qc6
{[%clk 0:01:41.2]} 18. Qxh7 {[%clk 0:01:28.8]} 18... Rh8 {[%clk 0:01:40.2]} 19.
Rxd6 {[%clk 0:01:02.7]} 19... Rxh7 {[%clk 0:01:36.4]} 20. Rxc6 {[%clk
0:01:02.8]} 20... Rxc6 {[%clk 0:01:38.3]} 21. Nb5 {[%clk 0:00:49.7]} 21... Rxh2
{[%clk 0:01:38.2]} 22. Nxa7 {[%clk 0:00:47.2]} 22... Ra6 {[%clk 0:01:38.5]} 23.
f4 {[%clk 0:00:35.1]} 23... Rxa7 {[%clk 0:01:37.4]} 24. fxe5 {[%clk 0:00:35.8]}
24... Rc7 {[%clk 0:01:37.2]} 0-1

[Event "*** Titled Tuesday Blitz AM"]
[Site "Chess.com"]
[Date "2020.01.07"]
[Round "5"]
[White "heyiampotato"]
[Black "CarlosAlbornoz"]
[Result "1-0"]
[WhiteElo "2510"]
[BlackElo "2748"]
[TimeControl "180+2"]
[EndTime "10:04:40 PST"]
[Termination "heyiampotato won by checkmate"]

1. d4 {[%clk 0:03:01.1]} 1... Nf6 {[%clk 0:03:00.4]} 2. Nf3 {[%clk 0:03:01.4]}
2... g6 {[%clk 0:03:01.4]} 3. Nbd2 {[%clk 0:03:01.9]} 3... Bg7 {[%clk
0:03:02.7]} 4. e4 {[%clk 0:03:02.4]} 4... d6 {[%clk 0:03:04]} 5. Bb5+ {[%clk
0:03:03.6]} 5... c6 {[%clk 0:03:04.3]} 6. Bd3 {[%clk 0:03:04.2]} 6... O-O {[%clk
0:03:05.3]} 7. O-O {[%clk 0:03:05.4]} 7... Nbd7 {[%clk 0:03:03.4]} 8. c3 {[%clk
0:03:04.5]} 8... e5 {[%clk 0:03:04.2]} 9. Re1 {[%clk 0:03:04.4]} 9... Re8 {[%clk
0:03:05]} 10. h3 {[%clk 0:03:05.3]} 10... Nh5 {[%clk 0:03:02.1]} 11. Qc2 {[%clk
0:03:02.2]} 11... Qe7 {[%clk 0:03:02.2]} 12. a4 {[%clk 0:03:00.2]} 12... a5
{[%clk 0:03:02.9]} 13. Nc4 {[%clk 0:02:55.3]} 13... h6 {[%clk 0:02:48.3]} 14.
Bf1 {[%clk 0:02:45.3]} 14... Qf6 {[%clk 0:02:46.9]} 15. dxe5 {[%clk 0:02:39.7]}
15... dxe5 {[%clk 0:02:43.1]} 16. Be3 {[%clk 0:02:31.1]} 16... Bf8 {[%clk
0:02:41.1]} 17. Rad1 {[%clk 0:02:25.2]} 17... b5 {[%clk 0:02:20.5]} 18. axb5
{[%clk 0:02:04.5]} 18... cxb5 {[%clk 0:02:22.4]} 19. Na3 {[%clk 0:02:04.4]}
19... b4 {[%clk 0:02:08.5]} 20. Nb5 {[%clk 0:01:58.9]} 20... Qc6 {[%clk
0:02:09]} 21. Na7 {[%clk 0:01:52.3]} 21... Qc7 {[%clk 0:02:00.6]} 22. Nb5 {[%clk
0:01:46.5]} 22... Qc6 {[%clk 0:01:49.6]} 23. Na7 {[%clk 0:01:47]} 23... Qb7
{[%clk 0:01:50.2]} 24. Nxc8 {[%clk 0:01:41.8]} 24... Raxc8 {[%clk 0:01:50.4]}
25. Qa4 {[%clk 0:01:20.6]} 25... bxc3 {[%clk 0:01:36.1]} 26. Rxd7 {[%clk
0:01:16.5]} 26... Qxb2 {[%clk 0:01:32.8]} 27. Bc4 {[%clk 0:01:11.4]} 27... Re7
{[%clk 0:01:26.6]} 28. Rxe7 {[%clk 0:01:08]} 28... Bxe7 {[%clk 0:01:28.5]} 29.
Nxe5 {[%clk 0:01:01.6]} 29... Rxc4 {[%clk 0:01:23.8]} 30. Qxc4 {[%clk
0:01:00.1]} 30... Ng7 {[%clk 0:01:20.3]} 31. Qxf7+ {[%clk 0:00:58.7]} 31... Kh8
{[%clk 0:01:22]} 32. Nxg6+ {[%clk 0:00:56]} 32... Kh7 {[%clk 0:01:22.5]} 33.
Nxe7 {[%clk 0:00:54.5]} 33... c2 {[%clk 0:01:24.4]} 34. Qg8# {[%clk 0:00:53.5]}
1-0

[Event "*** Titled Tuesday Blitz AM"]
[Site "Chess.com"]
[Date "2020.01.07"]
[Round "5"]
[White "Borsuk_Konstantin"]
[Black "Anton_Demchenko"]
[Result "0-1"]
[WhiteElo "2523"]
[BlackElo "2972"]
[TimeControl "180+2"]
[EndTime "10:04:43 PST"]
[Termination "Anton_Demchenko won by resignation"]

1. d4 {[%clk 0:03:01.9]} 1... Nf6 {[%clk 0:03:01]} 2. c4 {[%clk 0:03:02.8]} 2...
g6 {[%clk 0:03:02.4]} 3. Nc3 {[%clk 0:03:03.7]} 3... Bg7 {[%clk 0:03:03.9]} 4.
e4 {[%clk 0:03:04.4]} 4... O-O {[%clk 0:03:05.2]} 5. Be3 {[%clk 0:03:04]} 5...
d6 {[%clk 0:03:06]} 6. f3 {[%clk 0:03:04.1]} 6... a6 {[%clk 0:03:05.2]} 7. Rc1
{[%clk 0:02:54.4]} 7... Nbd7 {[%clk 0:03:03.2]} 8. c5 {[%clk 0:02:41.4]} 8...
dxc5 {[%clk 0:02:58.8]} 9. dxc5 {[%clk 0:02:42.3]} 9... Ne5 {[%clk 0:02:56.7]}
10. h3 {[%clk 0:02:13.5]} 10... Nh5 {[%clk 0:02:49.6]} 11. Kf2 {[%clk
0:02:01.4]} 11... e6 {[%clk 0:02:42.8]} 12. Qxd8 {[%clk 0:02:00.2]} 12... Rxd8
{[%clk 0:02:44.7]} 13. g4 {[%clk 0:01:56.8]} 13... Nf6 {[%clk 0:02:44]} 14. Rd1
{[%clk 0:01:48]} 14... Rxd1 {[%clk 0:02:31.4]} 15. Nxd1 {[%clk 0:01:48.3]} 15...
Bd7 {[%clk 0:02:33]} 16. f4 {[%clk 0:01:47.1]} 16... Nxe4+ {[%clk 0:02:32.1]}
17. Kg2 {[%clk 0:01:47.7]} 17... Bc6 {[%clk 0:02:22.6]} 18. Kh2 {[%clk
0:01:32.5]} 18... Rd8 {[%clk 0:02:22.4]} 19. Be2 {[%clk 0:01:32]} 19... Nc4
{[%clk 0:02:21.2]} 20. Bc1 {[%clk 0:01:21.6]} 20... Ncd2 {[%clk 0:02:08.2]} 21.
Nf3 {[%clk 0:01:08.7]} 21... Nf2 {[%clk 0:02:02.4]} 22. Nxf2 {[%clk 0:01:00.4]}
22... Nxf3+ {[%clk 0:02:01.7]} 23. Bxf3 {[%clk 0:00:57.8]} 23... Bxf3 {[%clk
0:02:02.5]} 24. Re1 {[%clk 0:00:55.8]} 24... Bd4 {[%clk 0:01:53]} 25. Kg3 {[%clk
0:00:56.8]} 25... Bd5 {[%clk 0:01:52.1]} 26. Be3 {[%clk 0:00:47.1]} 26... Bxb2
{[%clk 0:01:51.6]} 27. Rb1 {[%clk 0:00:41]} 27... Bg7 {[%clk 0:01:48.7]} 28. a4
{[%clk 0:00:41]} 28... Bc6 {[%clk 0:01:47.9]} 29. Rb4 {[%clk 0:00:35.6]} 29...
f5 {[%clk 0:01:48.6]} 30. h4 {[%clk 0:00:32.6]} 30... Kf7 {[%clk 0:01:49.3]} 31.
gxf5 {[%clk 0:00:30.5]} 31... gxf5 {[%clk 0:01:49.2]} 32. h5 {[%clk 0:00:27.4]}
32... Rg8 {[%clk 0:01:47.6]} 0-1

[Event "*** Titled Tuesday Blitz AM"]
[Site "Chess.com"]
[Date "2020.01.07"]
[Round "5"]
[White "Justmig"]
[Black "MattyDPerrine"]
[Result "1/2-1/2"]
[WhiteElo "2703"]
[BlackElo "2369"]
[TimeControl "180+2"]
[EndTime "10:04:57 PST"]
[Termination "Game drawn by repetition"]

1. d4 {[%clk 0:03:01.9]} 1... Nf6 {[%clk 0:02:51.5]} 2. Bg5 {[%clk 0:03:02.5]}
2... Ne4 {[%clk 0:02:50.1]} 3. Bf4 {[%clk 0:03:03.4]} 3... d5 {[%clk 0:02:44.9]}
4. e3 {[%clk 0:03:04.1]} 4... g6 {[%clk 0:02:44.3]} 5. Bd3 {[%clk 0:03:04.7]}
5... Bg7 {[%clk 0:02:45.3]} 6. Bxe4 {[%clk 0:03:05.9]} 6... dxe4 {[%clk
0:02:47.2]} 7. Nc3 {[%clk 0:03:06]} 7... c5 {[%clk 0:02:34.9]} 8. Nge2 {[%clk
0:02:46]} 8... cxd4 {[%clk 0:02:13.3]} 9. exd4 {[%clk 0:02:47.9]} 9... f5 {[%clk
0:02:13.5]} 10. Qd2 {[%clk 0:02:46]} 10... Nc6 {[%clk 0:01:52.3]} 11. O-O-O
{[%clk 0:02:40]} 11... Qa5 {[%clk 0:01:27.7]} 12. Bh6 {[%clk 0:02:27.3]} 12...
Bf6 {[%clk 0:01:28.4]} 13. Bg5 {[%clk 0:02:25.5]} 13... Bg7 {[%clk 0:01:26]} 14.
Bh6 {[%clk 0:02:19.7]} 14... Bf6 {[%clk 0:01:26.9]} 15. Kb1 {[%clk 0:02:20.6]}
15... Be6 {[%clk 0:00:57.7]} 16. Bg5 {[%clk 0:02:14.1]} 16... Bg7 {[%clk
0:00:46.6]} 17. Bh6 {[%clk 0:01:59.9]} 17... Bf6 {[%clk 0:00:47.7]} 18. Bg5
{[%clk 0:00:31.2]} 18... Bg7 {[%clk 0:00:27.1]} 19. Bh6 {[%clk 0:00:24.6]} 19...
Bf6 {[%clk 0:00:27.7]} 1/2-1/2

[Event "*** Titled Tuesday Blitz AM"]
[Site "Chess.com"]
[Date "2020.01.07"]
[Round "5"]
[White "Tayson_7"]
[Black "Me_ch_an"]
[Result "1-0"]
[WhiteElo "2562"]
[BlackElo "2336"]
[TimeControl "180+2"]
[EndTime "10:04:58 PST"]
[Termination "Tayson_7 won by checkmate"]

1. e4 {[%clk 0:02:54.8]} 1... c5 {[%clk 0:03:00.4]} 2. Nf3 {[%clk 0:02:52.6]}
2... Nc6 {[%clk 0:03:01.3]} 3. d4 {[%clk 0:02:53.3]} 3... cxd4 {[%clk
0:03:03.2]} 4. Nxd4 {[%clk 0:02:54]} 4... Qb6 {[%clk 0:03:04.7]} 5. Nb3 {[%clk
0:02:53.6]} 5... Nf6 {[%clk 0:03:05.6]} 6. Nc3 {[%clk 0:02:52.2]} 6... e6 {[%clk
0:03:05.5]} 7. Be3 {[%clk 0:02:52.6]} 7... Qc7 {[%clk 0:03:05.8]} 8. f4 {[%clk
0:02:52.3]} 8... d6 {[%clk 0:03:04.8]} 9. Qf3 {[%clk 0:02:52.4]} 9... a6 {[%clk
0:03:05.2]} 10. Bd3 {[%clk 0:02:52.1]} 10... Be7 {[%clk 0:03:06.2]} 11. O-O-O
{[%clk 0:02:39.7]} 11... O-O {[%clk 0:03:05]} 12. g4 {[%clk 0:02:39.8]} 12... b5
{[%clk 0:03:05.8]} 13. g5 {[%clk 0:02:39.6]} 13... Nd7 {[%clk 0:03:06.6]} 14.
Kb1 {[%clk 0:02:39.7]} 14... Bb7 {[%clk 0:03:07.3]} 15. h4 {[%clk 0:02:28.2]}
15... Rac8 {[%clk 0:03:08]} 16. h5 {[%clk 0:02:28.1]} 16... Nb4 {[%clk
0:03:01.3]} 17. g6 {[%clk 0:02:17.6]} 17... fxg6 {[%clk 0:02:53]} 18. hxg6
{[%clk 0:02:19.5]} 18... h6 {[%clk 0:02:53.7]} 19. Qh3 {[%clk 0:01:53.1]} 19...
Rf6 {[%clk 0:02:29.2]} 20. f5 {[%clk 0:01:52.2]} 20... exf5 {[%clk 0:01:44.2]}
21. Bxh6 {[%clk 0:01:46.3]} 21... Rxg6 {[%clk 0:01:43.6]} 22. Be3 {[%clk
0:00:40.6]} 22... Nxd3 {[%clk 0:01:29.2]} 23. cxd3 {[%clk 0:00:36.4]} 23... fxe4
{[%clk 0:01:22.3]} 24. Rdf1 {[%clk 0:00:25.3]} 24... Nf6 {[%clk 0:01:16.4]} 25.
Qe6+ {[%clk 0:00:24.8]} 25... Kf8 {[%clk 0:01:09.8]} 26. Rh8# {[%clk 0:00:26.7]}
1-0